bitfinex/quotes_ETHUSD_20220201
["timestamp","ask_amount","ask_price","bid_price","bid_amount"]
[1643679831151,0.91386351,2696.6,2695.7,2.0]
[1643679831751,0.41758519,2696.5,2696.0,0.92738]
[1643679831956,0.91386351,2696.6,2695.6,4.585548]
[1643679832159,0.91386351,2696.6,2695.7,3.22737]
[1643679832552,0.1854,2697.0,2695.7,3.22737]
[1643679832553,0.1854,2697.0,2695.7,4.16664519]
[1643679832752,0.1854,2697.0,2695.8,1.0]
[1643679832954,0.43179334,2696.8,2696.1,1.8544358]
[1643679833154,8.4896,2697.1,2696.1,0.9272158]
[1643679833353,8.4896,2697.1,2696.2,0.3]
[1643679833905,0.83268978,2696.7,2696.2,0.3]
[1643679834103,1.22310183,2696.7,2696.2,0.3]
[1643679834601,1.22310183,2696.7,2696.1,1.8544458]
[1643679834809,0.83268978,2696.7,2696.3,0.92722]
[1643679836659,5.4068,2697.1,2696.3,0.92722]
[1643679836810,5.2214,2697.1,2696.5,0.92711]
[1643679837007,0.1854,2697.5,2696.4,2.23488555]
[1643679837208,1.56059528,2697.4,2696.4,2.23488555]
[1643679837444,1.56059528,2697.4,2696.4,0.3]
[1643679837740,1.20880354,2697.1,2696.4,0.3]
[1643679837940,1.20880354,2697.1,2696.4,0.448515]
[1643679838141,1.20880354,2697.1,2696.5,0.9271]
[1643679838341,0.82485955,2697.1,2696.5,0.9271]
[1643679838542,0.1854,2697.5,2696.5,0.9271]
[1643679838767,0.1854,2697.5,2696.7,0.92712]
[1643679838768,1.5606067,2697.4,2696.7,0.92712]
[1643679839543,0.34827937,2696.9,2696.4,5.32606]
[1643679839743,0.94452636,2697.0,2696.4,5.32606]
[1643679839947,0.1854,2697.5,2696.4,5.02606]
[1643679840144,1.56068496,2697.4,2696.4,5.02606]
[1643679840347,0.1852,2697.3,2696.4,5.02606]
[1643679840544,1.56068496,2697.2,2696.4,5.02606]
[1643679840946,1.56068496,2697.2,2696.4,3.1719]
[1643679841196,0.88390706,2697.0,2696.4,3.1719]
[1643679841396,1.56068496,2697.2,2696.2,10.45365]
[1643679841397,0.67680926,2696.5,2696.2,9.59435]
[1643679841598,0.1854,2697.2,2696.2,9.29435]
[1643679841800,1.56075093,2697.1,2696.2,9.29435]
[1643679842002,0.1854,2697.0,2696.2,9.29435]
[1643679842197,1.56075093,2696.9,2696.2,9.29435]
[1643679842603,1.74615093,2696.8,2696.2,9.29435]
[1643679842799,0.81349173,2696.9,2696.2,9.29435]
[1643679843024,1.74615201,2696.8,2696.2,9.29435]
[1643679843203,0.81349173,2696.9,2696.2,9.29435]
[1643679843400,1.56073409,2696.8,2696.2,9.29435]
[1643679844299,0.81349173,2696.9,2696.2,9.29435]
[1643679845040,1.56073483,2696.8,2696.2,9.29435]
[1643679845344,1.56073483,2696.8,2696.3,1.97542948]
[1643679845541,1.56073483,2696.8,2696.3,0.92716]
[1643679847746,1.56073483,2696.8,2696.4,0.3]
[1643679848445,1.4294,2697.2,2696.4,0.3]
[1643679848446,1.56073483,2696.7,2696.4,0.3]
[1643679848690,1.4294,2697.2,2696.4,0.3]
[1643679848894,1.56080143,2697.1,2696.4,0.3]
[1643679849306,1.56080143,2697.1,2696.4,0.92711]
[1643679849492,1.56080143,2697.1,2696.5,0.3]
[1643679849689,2.44605387,2697.1,2696.5,0.3]
[1643679849893,1.56080143,2697.0,2696.5,1.22711]
[1643679851296,1.56080143,2697.0,2696.5,0.3]
[1643679851496,1.56080143,2697.0,2696.4,0.3]
[1643679851696,1.56080143,2697.0,2696.3,1.0]
[1643679852842,1.55958861,2697.0,2696.3,1.0]
[1643679853646,0.66938365,2696.6,2696.3,1.0]
[1643679853846,0.66938365,2696.6,2696.3,1.148529]
[1643679854244,0.1854,2697.1,2696.3,0.148529]
[1643679855246,0.78337007,2696.8,2696.3,0.148529]
[1643679859008,1.36836787,2696.0,2695.9,1.85451]
[1643679859207,1.36836787,2696.0,2695.6,0.92746]
[1643679859849,1.36836787,2696.0,2695.5,0.148563]
[1643679860149,1.36836787,2696.0,2695.5,1.076043]
[1643679860348,2.26632452,2696.0,2695.5,1.076043]
[1643679860751,2.26632452,2696.0,2695.5,1.376043]
[1643679861352,4.24073246,2696.0,2695.5,0.148563]
[1643679862649,2.26632452,2696.0,2695.5,0.148563]
[1643679862855,1.36836787,2696.0,2695.5,0.148563]
[1643679863062,1.36836787,2696.0,2695.5,1.076063]
[1643679863891,1.36836787,2696.0,2695.6,0.3]
[1643679864118,1.36836787,2696.0,2695.5,1.076063]
[1643679864119,2.04015813,2695.9,2695.5,1.076063]
[1643679864290,1.36836787,2696.0,2695.5,1.076063]
[1643679864890,1.36836787,2696.0,2695.6,0.3]
[1643679865094,1.36836787,2696.0,2695.6,1.2274048]
[1643679865392,1.36836787,2696.0,2695.6,1.5274048]
[1643679866229,1.36836787,2696.0,2695.6,3.4548148]
[1643679866596,1.36836787,2696.0,2695.7,2.04500412]
[1643679866803,1.36836787,2696.0,2695.8,0.00882009]
[1643679866998,1.36836787,2696.0,2695.9,6.88543]
[1643679867197,1.36836787,2696.0,2695.9,7.3]
[1643679867446,1.36836787,2696.0,2695.9,1.52719]
[1643679868047,1.36836787,2696.0,2695.9,4.02719]
[1643679868247,1.36836787,2696.0,2695.9,5.02719]
[1643679868453,1.36836787,2696.0,2695.9,4.1]
[1643679869050,1.36836787,2696.0,2695.9,0.6]
[1643679869253,1.36836787,2696.0,2695.9,0.3]
[1643679870850,1.36836787,2696.0,2695.6,0.6]
[1643679871088,1.36836787,2696.0,2695.5,3.88442916]
[1643679871794,1.36836787,2696.0,2695.5,4.81182916]
[1643679872396,1.36836787,2696.0,2695.5,2.861393]
[1643679872898,1.36836787,2696.0,2695.5,1.675963]
[1643679873096,1.36836787,2696.0,2695.5,2.675963]
[1643679874839,1.36836787,2696.0,2695.6,1.92829532]
[1643679875041,1.36836787,2696.0,2695.6,2.92829532]
[1643679875439,1.36836787,2696.0,2695.6,3.36439147]
[1643679876141,1.36836787,2696.0,2695.6,5.21894467]
[1643679876451,1.36836787,2696.0,2695.8,0.93141629]
[1643679876646,1.36836787,2696.0,2695.9,8.7]
[1643679877046,1.36836787,2696.0,2695.9,8.0]
[1643679877547,6.787e-05,2696.0,2695.9,8.18543]
[1643679878245,6.787e-05,2696.0,2695.9,9.11254]
[1643679879001,6.787e-05,2696.0,2695.9,12.33204]
[1643679882645,0.1854,2697.0,2696.4,0.92714]
[1643679882845,0.1854,2697.0,2696.5,0.92714]
[1643679883049,0.1854,2697.0,2696.6,0.3]
[1643679883551,0.1854,2697.1,2696.6,0.3]
[1643679883954,0.59965988,2697.1,2696.6,0.3]
[1643679884195,0.6985087,2697.0,2696.3,1.85427]
[1643679884352,0.59965988,2697.1,2696.3,1.85427]
[1643679884353,1.57365953,2696.9,2696.3,1.85427]
[1643679884546,1.57365953,2696.9,2696.1,3.70868]
[1643679884547,1.57365953,2696.9,2696.1,1.85441]
[1643679884750,1.57365953,2696.9,2696.1,2.15441]
[1643679884949,0.75630238,2696.3,2696.1,1.85441]
[1643679885149,0.75630238,2696.3,2695.9,1.85458]
[1643679885150,2.30281642,2696.2,2695.9,1.85458]
[1643679885347,2.16543163,2696.2,2695.9,1.85458]
[1643679885552,2.14108627,2696.2,2695.9,1.85458]
[1643679885847,0.1854,2696.2,2695.6,2.78203]
[1643679886297,2.11758738,2696.2,2695.6,0.92745]
[1643679886893,2.11758738,2696.2,2695.6,1.22745]
[1643679887095,0.86343748,2695.8,2695.6,1.8548947]
[1643679887330,0.1854,2695.7,2695.6,0.92745]
[1643679888296,0.1854,2696.1,2695.6,0.92745]
[1643679888894,2.10730512,2696.2,2695.6,0.92745]
[1643679889199,0.78042668,2695.8,2695.6,0.92745]
[1643679889396,0.78042668,2695.8,2695.5,0.148578]
[1643679889595,0.78042668,2695.8,2695.5,0.448578]
[1643679889850,2.5679426,2696.2,2695.5,0.148578]
[1643679891254,0.68846307,2695.9,2695.5,0.148578]
[1643679891456,0.1854,2695.8,2695.5,0.148578]
[1643679892057,0.1854,2695.8,2695.5,0.098578]
[1643679892656,0.68846307,2695.9,2695.5,0.098578]
[1643679893158,0.68846307,2695.9,2695.4,0.92755]
[1643679893458,2.14699905,2695.8,2695.4,0.92755]
[1643679893700,0.1854,2695.8,2695.4,0.92755]
[1643679894202,2.11726255,2695.8,2695.4,0.92755]
[1643679894405,2.17355736,2695.8,2695.4,0.92755]
[1643679894608,0.1854,2695.8,2695.4,0.92755]
[1643679895505,0.68846307,2695.9,2695.4,0.92755]
[1643679897549,1.9518664,2695.8,2695.4,0.92755]
[1643679897753,1.96561264,2695.8,2695.4,0.92755]
[1643679898350,0.68846307,2695.9,2695.4,0.82755]
[1643679899354,0.68846307,2695.9,2695.4,1.124719]
[1643679899754,0.68846307,2695.9,2695.4,0.976134]
[1643679900156,0.1854,2696.0,2695.4,0.976134]
[1643679901406,0.87763223,2696.1,2695.4,0.976134]
[1643679901605,0.87763223,2696.1,2695.4,1.903644]
[1643679902601,1.56155938,2696.0,2695.4,1.903644]
[1643679902804,3.50388993,2696.0,2695.4,1.903644]
[1643679903001,1.56155938,2695.9,2695.4,1.903644]
[1643679903204,1.56155938,2695.9,2695.5,1.22748]
[1643679903403,1.56155938,2695.9,2695.5,3.08234]
[1643679903705,1.56155938,2695.8,2695.6,0.3]
[1643679903949,1.56155938,2695.7,2695.6,1.3]
[1643679904100,1.56155938,2695.7,2695.6,0.3]
[1643679904301,1.56155938,2695.7,2695.6,3.15465]
[1643679904500,1.56155938,2695.7,2695.6,5.00928]
[1643679905000,0.6985087,2696.4,2695.6,5.00928]
[1643679905449,0.6985087,2696.4,2695.8,0.92734]
[1643679905645,0.6985087,2696.4,2695.9,0.92734]
[1643679905846,0.6985087,2696.4,2695.8,1.08916745]
[1643679906046,0.6985087,2696.4,2695.8,1.07879708]
[1643679906250,0.6985087,2696.4,2695.8,2.00614708]
[1643679906850,0.6985087,2696.4,2695.9,0.92734]
[1643679907153,1.56155938,2696.3,2695.9,0.92734]
[1643679907352,1.56155938,2696.2,2695.9,1.85467]
[1643679907556,1.56155938,2696.1,2695.9,1.85467]
[1643679907852,1.56155938,2696.0,2695.9,1.85467]
[1643679908354,1.56155938,2696.4,2695.9,1.85467]
[1643679909212,1.56155938,2696.4,2696.2,0.8263925]
[1643679914266,1.56155938,2696.3,2695.9,3.7091302]
[1643679914455,0.1854,2696.6,2696.2,0.8263925]
[1643679914653,1.56117198,2696.5,2696.2,0.8263925]
[1643679915262,0.1854,2696.4,2696.2,0.8263925]
[1643679915459,4.11117198,2696.3,2696.2,0.8263925]
[1643679915859,1.56117198,2696.3,2696.2,0.8263925]
[1643679916097,0.6985087,2696.4,2696.2,0.8263925]
[1643679916304,6.10968068,2696.3,2696.2,0.8263925]
[1643679916904,2.25968068,2696.3,2696.2,0.8263925]
[1643679917404,1.56117198,2696.3,2696.2,0.8263925]
[1643679917812,0.6985087,2696.4,2696.2,0.8263925]
[1643679919309,2.25968068,2696.4,2696.2,0.8263925]
[1643679919509,1.56117198,2696.3,2695.4,7.78319795]
[1643679919709,1.56117198,2696.2,2695.4,7.45549038]
[1643679919951,1.56117198,2696.1,2695.9,0.8263925]
[1643679920154,1.56117198,2696.0,2695.9,0.8263925]
[1643679920654,0.6985087,2696.3,2695.9,0.8263925]
[1643679922159,2.25968068,2696.4,2695.9,1.1263925]
[1643679922358,1.169,2696.7,2696.0,1.98776699]
[1643679922359,1.56117198,2696.3,2696.0,1.98776699]
[1643679922556,1.56117198,2696.2,2696.0,2.19363354]
[1643679922755,1.56117198,2696.1,2695.9,3.429349]
[1643679922959,1.56117198,2696.1,2696.0,5.30690978]
[1643679923156,1.56117198,2696.1,2696.0,5.71649235]
[1643679923358,1.56117198,2696.1,2696.0,6.53920046]
[1643679923604,0.6985087,2696.7,2696.1,0.9272489]
[1643679923802,0.6985087,2696.7,2696.2,1.22725]
[1643679924603,2.25961804,2696.7,2696.2,1.22725]
[1643679924903,1.56110934,2696.6,2696.2,1.22725]
[1643679925105,1.56110934,2696.5,2696.4,0.8263925]
[1643679925510,1.56110934,2696.6,2696.4,0.8263925]
[1643679925706,1.56110934,2696.5,2696.4,0.8263925]
[1643679925908,1.56110934,2696.5,2696.2,0.38849521]
[1643679926104,1.56110934,2696.4,2696.2,0.08849521]
[1643679926316,1.56110934,2696.3,2696.2,0.08849521]
[1643679926509,0.6985087,2696.7,2696.2,0.08849521]
[1643679927953,0.6985087,2696.7,2696.2,0.03849521]
[1643679930158,0.6985087,2696.7,2696.2,0.96571521]
[1643679930357,0.6985087,2696.6,2696.3,0.9272106]
[1643679930575,0.6985087,2696.6,2696.2,0.96571521]
[1643679930763,2.25961804,2696.5,2696.2,0.96571521]
[1643679930957,2.25961804,2696.5,2696.0,1.85444]
[1643679931208,2.44501804,2696.4,2696.0,1.85444]
[1643679931408,1.56110934,2696.3,2696.0,2.78172]
[1643679931628,1.56110934,2696.2,2696.0,2.78172]
[1643679931806,1.56110934,2696.1,2696.0,2.78172]
[1643679932007,2.25961804,2696.5,2696.0,2.78172]
[1643679932216,2.25961804,2696.4,2696.0,2.78172]
[1643679932409,1.56110934,2696.3,2696.0,2.78172]
[1643679932910,1.56110934,2696.2,2696.0,1.85444]
[1643679933109,1.56110934,2696.1,2696.0,1.85444]
[1643679933509,0.87220081,2696.4,2696.0,1.85444]
[1643679933510,1.56110934,2696.3,2696.0,1.85444]
[1643679933708,1.56110934,2696.2,2696.0,1.85444]
[1643679933910,1.56110934,2696.1,2696.0,1.85444]
[1643679934119,0.6985087,2696.4,2696.0,1.85444]
[1643679934513,0.6985087,2696.4,2696.0,2.002997]
[1643679934715,1.56110934,2696.3,2696.0,2.151555]
[1643679934963,1.56110934,2696.2,2696.0,2.151555]
[1643679935265,1.56110934,2696.1,2696.0,1.85444]
[1643679935465,2.25961804,2696.5,2696.0,1.85444]
[1643679937666,2.25961804,2696.5,2696.1,0.3]
[1643679938069,2.25961804,2696.5,2696.0,1.85444]
[1643679938271,2.80955194,2696.4,2696.0,0.297102]
[1643679938475,2.44501804,2696.3,2696.0,0.297102]
[1643679938707,4.7985087,2696.1,2696.0,0.297102]
[1643679938916,7.90468739,2696.1,2696.0,0.297102]
[1643679939109,3.61928739,2696.1,2695.4,3.70987]
[1643679939308,2.2614838,2696.0,2695.4,3.70987]
[1643679939507,1.56110934,2695.9,2695.4,3.70987]
[1643679939710,0.1854,2696.2,2695.4,3.70987]
[1643679939711,1.56110934,2695.8,2695.5,1.85475]
[1643679939909,1.56110934,2695.7,2695.5,3.15475]
[1643679940136,1.92297446,2696.3,2695.6,1.85482]
[1643679940309,1.56130207,2696.2,2695.6,2.15482]
[1643679940908,1.56130207,2696.1,2695.7,0.927399]
[1643679941114,1.2031,2696.7,2695.8,0.92736]
[1643679941115,1.56130207,2696.0,2695.8,0.92736]
[1643679941315,2.13377474,2696.7,2695.8,0.92736]
[1643679941316,1.56130207,2695.9,2695.8,3.38197]
[1643679941514,1.56130207,2695.9,2695.8,4.30932]
[1643679941712,1.56130207,2695.9,2695.8,5.30932]
[1643679942552,0.70037446,2696.3,2695.8,4.38196]
[1643679943152,0.70037446,2696.3,2695.8,5.30932]
[1643679944055,0.70037446,2696.4,2695.8,5.30932]
[1643679944256,0.70037446,2696.3,2695.8,3.70932]
[1643679944454,2.26167653,2696.2,2695.9,0.9273567]
[1643679944655,2.26167653,2696.1,2695.8,2.78196]
[1643679944956,3.09642758,2696.4,2695.8,2.78196]
[1643679944957,1.56130207,2696.0,2695.8,2.78196]
[1643679945155,1.56130207,2695.9,2695.8,2.78196]
[1643679945354,0.1854,2696.1,2695.8,2.78196]
[1643679945355,1.56130207,2696.0,2695.8,2.78196]
[1643679945557,1.56130207,2695.9,2695.8,2.78196]
[1643679946212,1.56130207,2696.0,2695.8,2.930526]
[1643679946516,1.56130207,2695.9,2695.8,2.78196]
[1643679946710,0.70037446,2696.2,2695.8,2.78196]
[1643679946914,0.88577446,2696.2,2695.8,2.78196]
[1643679947109,1.56130207,2696.1,2695.8,2.78196]
[1643679947529,1.56130207,2696.0,2695.8,2.78196]
[1643679947717,1.56130207,2695.9,2695.8,2.78196]
[1643679948112,1.56130066,2695.9,2695.8,2.78196]
[1643679948312,0.70037446,2696.2,2695.8,2.78196]
[1643679948715,0.88577446,2696.2,2695.8,2.78196]
[1643679948915,1.56130066,2696.1,2695.8,1.11651944]
[1643679949316,1.56130066,2696.1,2695.9,0.3]
[1643679949519,0.70037446,2696.3,2695.9,7.1591442]
[1643679949520,1.56130066,2696.0,2695.9,7.1591442]
[1643679949856,0.70037446,2696.3,2695.9,8.4530977]
[1643679950062,0.70037446,2696.3,2695.9,3.5243367]
[1643679950356,0.70037446,2696.3,2695.9,3.3757877]
[1643679950556,0.70037446,2696.3,2695.9,1.85446]
[1643679950789,1.51385101,2696.3,2695.9,1.85446]
[1643679950958,1.51385101,2696.3,2695.5,1.0]
[1643679950959,2.26167512,2696.2,2695.5,1.0]
[1643679951160,0.70037446,2696.1,2695.5,1.0]
[1643679951359,0.70037446,2696.1,2695.4,8.6543]
[1643679951562,0.88577446,2696.1,2695.3,4.82559604]
[1643679951767,1.56130066,2696.0,2695.3,4.82559604]
[1643679951961,1.56130066,2695.9,2695.3,4.82559604]
[1643679952164,1.56130066,2695.8,2695.5,1.85474]
[1643679952360,1.56130066,2695.7,2695.5,1.85474]
[1643679952559,1.56130066,2695.6,2695.5,1.85474]
[1643679952759,0.70037446,2696.0,2695.5,1.85474]
[1643679952961,1.56130066,2695.9,2695.5,1.85474]
[1643679953161,1.56130066,2695.8,2695.5,1.85474]
[1643679953361,1.56130066,2695.7,2695.5,1.85474]
[1643679953605,1.56130066,2695.6,2695.5,1.85474]
[1643679954008,0.70037446,2696.0,2695.5,1.85474]
[1643679954216,1.56130066,2695.9,2695.5,2.003309]
[1643679954418,1.56130066,2695.8,2695.5,1.85474]
[1643679954609,1.56130066,2695.7,2695.5,1.85474]
[1643679954910,1.56130066,2695.6,2695.5,1.85474]
[1643679955312,1.56130066,2695.9,2695.5,1.85474]
[1643679955512,1.56130066,2695.8,2695.5,1.85474]
[1643679955711,1.56130066,2695.7,2695.5,1.85474]
[1643679955910,1.56130066,2695.6,2695.5,1.85474]
[1643679956111,0.70037446,2696.0,2695.5,1.85474]
[1643679956315,0.88577446,2696.0,2695.5,1.85474]
[1643679956519,1.56130066,2695.9,2695.5,1.85474]
[1643679956814,0.91614564,2695.8,2695.5,1.85474]
[1643679957121,1.56130066,2695.7,2695.1,2.38877135]
[1643679957360,0.1854,2695.6,2695.1,1.99322997]
[1643679957560,1.56130066,2695.5,2695.1,1.99322997]
[1643679958059,1.56130066,2695.4,2695.1,2.29040197]
[1643679958256,1.56130066,2695.3,2695.1,1.99322997]
[1643679958462,1.56130066,2695.2,2695.1,1.99322997]
[1643679958669,3.61263905,2695.2,2694.9,0.01661319]
[1643679958865,0.1855,2695.6,2694.9,0.01661319]
[1643679958866,3.47528124,2695.1,2694.9,0.01661319]
[1643679959060,0.88587446,2695.6,2694.9,0.01661319]
[1643679959061,1.56130066,2695.0,2694.9,0.01661319]
[1643679959263,1.74680066,2695.4,2694.9,0.01661319]
[1643679959458,1.56130066,2695.3,2694.9,0.01661319]
[1643679959661,0.87495797,2695.2,2694.9,0.01661319]
[1643679959862,1.56130066,2695.1,2694.9,0.01661319]
[1643679960460,2.39543493,2695.0,2694.6,0.38353319]
[1643679960766,1.56130066,2694.9,2694.5,1.0694768]
[1643679960963,2.24369774,2694.8,2694.5,1.0694768]
[1643679961214,1.56130066,2694.7,2694.5,1.0694768]
[1643679961414,1.93954312,2694.6,2694.5,1.0694768]
[1643679961614,3.50084378,2694.6,2694.5,1.0694768]
[1643679961814,1.56130066,2694.6,2694.5,1.0694768]
[1643679962717,1.56130066,2694.8,2694.5,1.0694768]
[1643679962914,1.74680066,2694.7,2694.5,1.0694768]
[1643679963118,1.56130066,2694.6,2694.5,1.0694768]
[1643679963915,1.56130066,2694.8,2694.5,1.0694768]
[1643679964214,1.56130066,2694.7,2694.5,1.0694768]
[1643679964422,1.56130066,2694.6,2694.5,1.0694768]
[1643679964856,2.48784657,2694.9,2694.5,1.0694768]
[1643679965052,1.56199423,2694.8,2694.5,1.0694768]
[1643679965655,1.56199423,2694.8,2694.5,1.2181148]
[1643679966361,1.92488262,2694.9,2694.5,1.2181148]
[1643679966563,1.74748732,2694.8,2694.5,1.2181148]
[1643679966761,3.48556295,2694.7,2694.5,1.2181148]
[1643679966960,0.1855,2694.9,2694.5,1.2181148]
[1643679966961,1.56198732,2694.6,2694.5,1.2181148]
[1643679967162,2.30802214,2694.9,2694.5,1.2181148]
[1643679967163,1.56198732,2694.8,2694.5,1.2181148]
[1643679967367,1.93365949,2694.7,2694.5,1.2181148]
[1643679967566,1.56198732,2694.6,2694.5,1.2181148]
[1643679967967,1.56198732,2694.8,2694.5,1.2181148]
[1643679968163,3.5033392,2694.7,2694.5,1.2181148]
[1643679968369,1.56198732,2694.6,2694.5,1.2181148]
[1643679968607,1.56198732,2694.8,2694.5,1.2181148]
[1643679968811,1.94611133,2694.7,2694.5,1.2181148]
[1643679969011,0.29952733,2694.4,2694.0,1.1645]
[1643679969207,0.29952733,2694.4,2693.9,0.25719994]
[1643679969809,0.29952733,2694.4,2694.3,0.148645]
[1643679971615,0.24952733,2694.4,2694.3,0.148645]
[1643679972214,2.28253466,2694.4,2693.9,0.25719994]
[1643679972461,2.28253466,2694.4,2693.8,3.31775]
[1643679972462,3.58009917,2694.3,2693.8,3.31775]
[1643679972664,3.58009917,2694.3,2694.0,0.14865]
[1643679972665,2.20325848,2694.3,2694.0,0.14865]
[1643679973668,0.77524613,2694.2,2694.0,0.14865]
[1643679976108,0.77524613,2694.2,2694.0,0.14120089]
[1643679976517,0.4068416,2694.1,2694.0,0.14120089]
[1643679976713,0.77524613,2694.2,2694.0,0.14120089]
[1643679978317,2.02583712,2694.1,2694.0,0.14120089]
[1643679978517,6.75,2694.0,2693.8,0.14865]
[1643679978718,2.03904111,2693.9,2692.9,0.02]
[1643679979018,0.1855,2693.8,2692.9,0.02]
[1643679979416,0.68745284,2693.3,2692.9,0.02]
[1643679979719,2.03549657,2693.2,2692.9,0.02]
[1643679979965,2.03549657,2693.2,2692.8,0.148705]
[1643679980402,0.38342634,2693.1,2692.9,0.148704]
[1643679980575,0.00515034,2693.2,2692.9,0.048704]
[1643679981063,0.00515034,2693.2,2692.9,0.05715206]
[1643679981270,0.68745284,2693.3,2692.9,0.05715206]
[1643679982285,0.37197999,2693.2,2692.9,0.05715206]
[1643679982480,2.03475061,2693.1,2692.9,0.05715206]
[1643679983084,5.70447378,2693.0,2692.2,0.04]
[1643679983275,0.18997378,2693.0,2692.2,0.02]
[1643679983474,0.1855,2693.0,2692.1,0.02]
[1643679983713,2.37197999,2693.2,2692.1,0.148738]
[1643679983714,0.1855,2693.1,2692.1,0.148738]
[1643679984917,0.00383442,2693.0,2692.1,0.148738]
[1643679985114,0.1855,2692.9,2692.1,0.148738]
[1643679986319,0.91264667,2692.4,2692.1,0.148738]
[1643679987959,0.1857,2692.3,2692.1,0.148738]
[1643679988161,2.20190745,2692.3,2692.1,0.148738]
[1643679988363,5.29692649,2692.2,2692.1,0.148738]
[1643679988562,7.45928652,2692.2,2692.1,0.148738]
[1643679988964,7.45928652,2692.2,2691.0,0.43433689]
[1643679988965,0.18842976,2692.0,2691.0,0.43433689]
[1643679989178,0.18842976,2692.0,2690.5,0.00203148]
[1643679989371,0.18842976,2692.0,2690.2,4.94291]
[1643679989372,0.0122411,2691.6,2690.2,6.9132]
[1643679989665,0.0122411,2691.6,2690.3,0.04143685]
[1643679989960,0.74873559,2691.3,2690.9,0.148817]
[1643679990159,1.93426766,2691.2,2690.9,0.148817]
[1643679990360,1.97990449,2691.2,2690.9,0.148817]
[1643679990562,1.97990449,2691.2,2690.3,0.04143685]
[1643679990760,0.1857,2691.1,2690.3,0.04143685]
[1643679990971,3.14080449,2691.2,2690.2,0.04200527]
[1643679991221,0.1857,2691.1,2690.0,0.04314212]
[1643679991414,3.14080449,2691.2,2689.9,0.04371054]
[1643679991617,3.14080449,2691.2,2690.1,0.31731018]
[1643679992034,3.14080449,2691.2,2690.2,0.04200527]
[1643679992213,1.1609,2691.2,2690.2,0.04200527]
[1643679992414,1.3466,2691.2,2690.2,0.04200527]
[1643679992613,1.3466,2691.2,2689.9,0.06371054]
[1643679992614,2.10241969,2691.1,2689.9,0.06371054]
[1643679992816,2.10241969,2691.1,2690.0,0.04314212]
[1643679993216,2.10241969,2691.1,2689.9,0.41455684]
[1643679993415,2.02943564,2691.1,2690.0,0.04314212]
[1643679993620,2.05696202,2691.1,2690.0,0.04314212]
[1643679993817,1.3466,2691.2,2690.0,0.04314212]
[1643679995459,1.3466,2691.2,2690.0,0.06314212]
[1643679995659,1.3466,2691.2,2690.0,0.04314212]
[1643679995859,1.99131121,2691.1,2690.1,0.0425737]
[1643679996062,0.1857,2691.0,2690.0,0.04314212]
[1643679996665,0.51159019,2691.0,2690.0,0.04314212]
[1643679996867,1.95810493,2690.9,2690.0,0.04314212]
[1643679997673,0.51159019,2691.0,2690.0,0.04314212]
[1643679998266,0.1857,2691.0,2690.0,0.04314212]
[1643679999529,0.0120252,2690.9,2690.0,0.04314212]
[1643679999756,0.1857,2690.8,2690.0,0.04314212]
[1643679999918,0.1857,2690.8,2689.8,0.04427897]
[1643680000119,0.3685342,2690.4,2689.8,0.04427897]
[1643680000320,0.1857,2690.3,2689.8,0.04427897]
[1643680000521,0.72059562,2690.2,2689.8,0.04427897]
[1643680000726,6.75,2690.0,2689.7,0.02]
[1643680000926,0.1857,2689.9,2689.7,0.02]
[1643680001121,0.1857,2689.9,2689.0,3.16266351]
[1643680001122,6.75442958,2689.8,2689.0,3.16266351]
[1643680001323,3.1859,2689.7,2688.5,2.5]
[1643680001529,0.78156115,2689.0,2687.9,4.0056165]
[1643680001723,0.78156115,2689.0,2687.9,0.15089689]
[1643680001924,0.1859,2688.9,2687.9,0.15089689]
[1643680002127,0.1859,2688.9,2688.1,0.97958401]
[1643680002563,0.1859,2688.9,2688.2,2.0]
[1643680002764,14.97752983,2689.7,2688.1,0.97958401]
[1643680002765,0.1859,2689.3,2688.1,0.97958401]
[1643680003068,14.97752983,2689.7,2688.2,2.3]
[1643680003069,0.1859,2689.4,2688.2,2.3]
[1643680003264,0.1859,2689.6,2688.2,3.3]
[1643680003468,3.6859,2689.6,2688.2,3.3]
[1643680003669,0.1859,2689.6,2688.1,1.27958401]
[1643680003868,0.3,2689.5,2688.2,2.0]
[1643680004073,0.1859,2689.4,2688.2,2.0]
[1643680004266,0.1859,2689.6,2688.1,1.27958401]
[1643680004468,0.1859,2689.6,2688.2,2.0]
[1643680004665,0.1859,2689.6,2688.5,0.17415326]
[1643680005265,1.1859,2689.6,2688.5,0.17415326]
[1643680005464,1.1859,2689.6,2688.2,2.0]
[1643680006119,1.1859,2689.6,2688.1,0.97958401]
[1643680006516,0.1859,2689.6,2688.4,0.17415326]
[1643680008115,0.1859,2689.6,2688.2,2.0]
[1643680008315,1.1859,2689.6,2688.2,2.0]
[1643680008514,1.1859,2689.6,2688.1,0.97958401]
[1643680008721,1.1859,2689.6,2687.9,3.35149689]
[1643680008722,6.75,2689.4,2687.9,0.15089689]
[1643680008919,6.75,2689.4,2687.3,0.18543]
[1643680008920,0.01225801,2688.6,2687.3,0.18543]
[1643680009122,0.01206039,2688.1,2687.0,0.17415326]
[1643680009321,0.01206039,2688.1,2686.3,3.3328]
[1643680009322,0.01811557,2688.1,2686.3,3.3328]
[1643680009529,0.186,2688.0,2686.3,3.3328]
[1643680009719,0.186,2688.0,2686.2,0.01208932]
[1643680009720,0.3,2687.8,2686.2,0.01208932]
[1643680010015,0.3,2687.8,2686.1,0.11899997]
[1643680010016,2.19648657,2687.7,2686.1,0.11899997]
[1643680010209,2.19648657,2687.7,2684.9,1.0694768]
[1643680010210,6.88819997,2687.6,2685.6,0.0020172]
[1643680010415,6.88819997,2687.6,2685.1,2.1183528]
[1643680010416,6.75,2687.3,2685.1,2.1183528]
[1643680010607,0.01262608,2686.8,2685.1,2.1183528]
[1643680010811,0.186,2686.7,2685.1,1.9619528]
[1643680011009,2.186,2686.7,2685.1,1.9619528]
[1643680011214,1.0952,2686.7,2685.1,1.9619528]
[1643680011415,2.0,2686.6,2685.1,1.9619528]
[1643680011615,0.186,2686.5,2685.1,1.9619528]
[1643680011816,0.01118372,2686.8,2685.5,0.01233891]
[1643680012018,0.01118372,2686.8,2685.6,0.186]
[1643680012415,0.01118372,2686.8,2686.0,0.17415326]
[1643680012617,0.186,2686.7,2685.6,0.186]
[1643680012819,0.00444647,2687.2,2686.1,0.186]
[1643680013020,0.01224963,2687.5,2686.1,0.186]
[1643680013215,2.13819997,2687.6,2686.1,0.19843314]